bitfinex-derivatives/quotes_BTCF0:USTF0_20250922
["timestamp","ask_amount","ask_price","bid_price","bid_amount"]
[1758572012614,0.86469655,112200.0,112190.0,1.15006439]
[1758572012923,0.83296018,112200.0,112190.0,0.85512]
[1758572013918,1.12790457,112200.0,112190.0,0.85512]
[1758572014417,1.15964094,112200.0,112190.0,0.85512]
[1758572014617,0.56975216,112200.0,112190.0,0.85512]
[1758572014918,1.15964094,112200.0,112190.0,0.85512]
[1758572015116,1.15964094,112200.0,112190.0,0.03324]
[1758572015419,1.15964094,112200.0,112190.0,0.66276]
[1758572018520,1.15964094,112200.0,112190.0,0.03324]
[1758572018724,1.15964094,112200.0,112190.0,0.85512]
[1758572020122,0.86469655,112200.0,112190.0,1.15006439]
[1758572024126,0.86469655,112200.0,112190.0,0.03324]
[1758572024318,1.15964094,112200.0,112190.0,0.30932]
[1758572024622,1.15964094,112200.0,112190.0,0.33216]
[1758572025222,1.15964094,112200.0,112190.0,0.03324]
[1758572025423,1.15964094,112200.0,112190.0,0.6626]
[1758572026623,1.15964094,112200.0,112190.0,0.85512]
[1758572027613,1.15964094,112200.0,112190.0,0.85508]
[1758572030426,0.56975216,112200.0,112190.0,0.85508]
[1758572030628,1.15964094,112200.0,112190.0,0.85508]
[1758572033817,0.56975216,112200.0,112190.0,0.85508]
[1758572034017,1.15964094,112200.0,112190.0,0.85508]
[1758572034430,1.15964094,112200.0,112190.0,1.15002439]
[1758572034616,1.15964094,112200.0,112190.0,0.85508]
[1758572036329,1.15964094,112200.0,112190.0,0.03324]
[1758572036530,1.15964094,112200.0,112190.0,0.38216]
[1758572040633,1.17551415,112200.0,112190.0,0.38216]
[1758572043928,0.88056976,112200.0,112190.0,0.67710439]
[1758572044128,0.88056976,112200.0,112190.0,0.76617779]
[1758572044338,0.91245399,112200.0,112190.0,0.76617779]
[1758572044630,0.91245399,112200.0,112190.0,1.14986439]
[1758572045532,0.91245399,112200.0,112190.0,1.48893779]
[1758572045731,0.10728452,112200.0,112190.0,1.79673218]
[1758572046034,0.07540029,112200.0,112190.0,1.50178779]
[1758572046335,0.05234029,112200.0,112190.0,1.50178779]
[1758572046734,0.05234029,112200.0,112190.0,0.68010779]
[1758572046935,0.05234029,112200.0,112190.0,1.50178779]
[1758572047231,0.03129697,112200.0,112190.0,1.51954268]
[1758572050141,0.03129697,112200.0,112190.0,1.22451829]
[1758572050440,0.05364697,112200.0,112190.0,0.69786268]
[1758572050639,0.05364697,112200.0,112190.0,1.51946268]
[1758572052341,0.03129697,112200.0,112190.0,1.51946268]
[1758572055740,0.05364697,112200.0,112190.0,0.69786268]
[1758572055946,0.45057686,112200.0,112190.0,1.26942268]
[1758572056133,0.81137686,112200.0,112190.0,1.25613268]
[1758572056837,0.81137686,112200.0,112190.0,1.25653268]
[1758572057236,0.81137686,112200.0,112190.0,1.25613268]
[1758572057440,0.81137686,112200.0,112190.0,1.25653268]
[1758572058753,0.81137686,112200.0,112190.0,0.14006829]
[1758572058954,0.81137686,112200.0,112190.0,1.25649268]
[1758572059657,0.81137686,112200.0,112190.0,0.43501268]
[1758572059865,0.81137686,112200.0,112190.0,0.96150829]
[1758572060163,0.81137686,112200.0,112190.0,0.96110829]
[1758572060364,0.81137686,112200.0,112190.0,1.25645268]
[1758572061761,0.42736697,112200.0,112190.0,1.26930268]
[1758572062464,0.51643247,112200.0,112190.0,1.26930268]
[1758572062865,0.81137686,112200.0,112190.0,1.26930268]
[1758572065369,0.81137686,112200.0,112190.0,0.44786268]
[1758572065567,0.81137686,112200.0,112190.0,1.26922268]
[1758572065962,0.51643247,112200.0,112190.0,1.26922268]
[1758572066271,0.06656697,112200.0,112190.0,1.26922268]
[1758572066673,0.51643247,112200.0,112190.0,1.26922268]
[1758572067766,0.06656697,112200.0,112190.0,1.26922268]
[1758572068674,0.15563237,112200.0,112190.0,1.26922268]
[1758572070672,0.15563237,112200.0,112190.0,1.3674145]
[1758572071372,0.06656697,112200.0,112190.0,1.3674145]
[1758572071574,0.05364697,112200.0,112190.0,1.3674145]
[1758572071976,0.14271247,112200.0,112190.0,1.3674145]
[1758572072975,0.15596247,112200.0,112190.0,1.3674145]
[1758572075473,0.06689697,112200.0,112190.0,1.3674145]
[1758572076277,0.05364697,112200.0,112190.0,1.3674145]
[1758572077372,0.03129697,112200.0,112190.0,1.6174145]
[1758572078169,0.03129697,112200.0,112190.0,0.7960545]
[1758572078371,0.03129697,112200.0,112190.0,1.6172545]
[1758572079281,0.03129697,112200.0,112190.0,1.3672545]
[1758572083774,0.03129697,112200.0,112190.0,1.3671345]
[1758572085179,0.03129697,112200.0,112190.0,0.5460545]
[1758572085381,0.03129697,112200.0,112190.0,1.3671345]
[1758572085677,0.03129697,112200.0,112190.0,0.5460545]
[1758572085880,0.03129697,112200.0,112190.0,1.3670945]
[1758572086379,0.05308697,112200.0,112190.0,0.97395829]
[1758572086579,0.05308697,112200.0,112190.0,1.3670945]
[1758572086880,0.05308697,112200.0,112190.0,0.97395829]
[1758572087078,0.05308697,112200.0,112190.0,1.3670945]
[1758572087379,0.05308697,112200.0,112190.0,0.5460545]
[1758572087579,0.05308697,112200.0,112190.0,1.3670945]
[1758572087975,0.05308697,112200.0,112190.0,1.3670545]
[1758572088172,0.05308697,112200.0,112190.0,0.97391829]
[1758572088373,0.03129697,112200.0,112190.0,1.3670545]
[1758572091076,0.03133883,112200.0,112190.0,1.3670545]
[1758572099289,0.03133883,112200.0,112190.0,1.3668945]
[1758572100493,0.03133883,112200.0,112190.0,0.97371829]
[1758572100693,0.03133883,112200.0,112190.0,1.3668545]
[1758572101891,0.03133883,112200.0,112190.0,0.97371829]
[1758572102094,0.03133883,112200.0,112190.0,1.3668545]
[1758572102591,0.03133883,112200.0,112190.0,1.6268545]
[1758572102993,0.03133883,112200.0,112190.0,1.3668545]
[1758572103297,0.05413883,112200.0,112190.0,0.5460545]
[1758572103595,0.03133883,112200.0,112190.0,0.5460545]
[1758572103793,0.03133883,112200.0,112190.0,1.3668145]
[1758572107894,0.03136335,112200.0,112190.0,1.3668145]
[1758572111293,0.03136335,112200.0,112190.0,1.6568145]
[1758572112303,0.03136335,112200.0,112190.0,1.3668145]
[1758572112497,0.03136335,112200.0,112190.0,1.3666545]
[1758572113305,0.03136335,112200.0,112190.0,0.97351829]
[1758572113500,0.03136335,112200.0,112190.0,0.5460545]
[1758572113695,0.03136335,112200.0,112190.0,1.3666545]
[1758572115206,0.03136335,112200.0,112190.0,0.5460545]
[1758572115408,0.03136335,112200.0,112190.0,1.3666145]
[1758572116217,0.05416335,112200.0,112190.0,0.15291829]
[1758572116414,0.05416335,112200.0,112190.0,1.3666145]
[1758572120013,0.05416335,112200.0,112190.0,0.97347829]
[1758572120318,0.05416335,112200.0,112190.0,1.3666145]
[1758572121021,0.05416335,112200.0,112190.0,0.5460545]
[1758572121320,0.05416335,112200.0,112190.0,1.3665345]
[1758572121924,0.05416335,112200.0,112190.0,0.97339829]
[1758572122114,0.05416335,112200.0,112190.0,1.3665345]
[1758572122618,0.05416335,112200.0,112190.0,0.5460545]
[1758572122821,0.05416335,112200.0,112190.0,1.3665345]
[1758572123023,1.16069506,112200.0,112190.0,0.05099489]
[1758572123317,1.16069506,112200.0,112190.0,0.87103489]
[1758572123522,1.16069506,112200.0,112190.0,0.87143489]
[1758572124014,1.16069506,112200.0,112190.0,0.05099489]
[1758572124210,1.16069506,112200.0,112190.0,0.87143489]
[1758572124721,0.76755885,112200.0,112190.0,0.87143489]
[1758572125622,0.76755885,112200.0,112190.0,0.96050829]
[1758572126015,0.67849335,112200.0,112190.0,0.96050829]
[1758572126215,0.67849335,112200.0,112190.0,1.3536445]
[1758572126411,0.76755885,112200.0,112190.0,1.3536445]
[1758572127119,0.76755885,112200.0,112190.0,0.96050829]
[1758572128022,0.67849335,112200.0,112190.0,0.96050829]
[1758572128416,0.76755885,112200.0,112190.0,0.96050829]
[1758572130324,0.76755885,112200.0,112190.0,1.3536445]
[1758572132523,1.06243603,112200.0,112190.0,1.25538547]
[1758572132920,1.06243603,112200.0,112190.0,0.43494547]
[1758572133223,1.06243603,112200.0,112190.0,1.25530547]
[1758572133626,0.76755885,112200.0,112190.0,1.25530547]
[1758572133828,1.06243603,112200.0,112190.0,1.25530547]
[1758572134618,1.03907268,112200.0,112190.0,1.25530547]
[1758572134821,1.0624233,112200.0,112190.0,1.25530547]
[1758572135624,1.0624233,112200.0,112190.0,0.96042829]
[1758572135831,1.0624233,112200.0,112190.0,1.25530547]
[1758572138734,0.76754612,112200.0,112190.0,1.25530547]
[1758572138928,1.0624233,112200.0,112190.0,1.25530547]
[1758572139129,0.76754612,112200.0,112190.0,1.25530547]
[1758572139329,0.8124233,112200.0,112190.0,1.25530547]
[1758572142233,0.05415062,112200.0,112190.0,1.81299265]
[1758572142432,0.03135062,112200.0,112190.0,1.81299265]
[1758572142738,0.03135062,112200.0,112190.0,1.51811547]
[1758572144735,0.03135062,112200.0,112190.0,1.81299265]
[1758572144942,0.03135062,112200.0,112190.0,2.50379265]
[1758572147840,0.0001,112210.0,112200.0,0.0890654]
[1758572148040,0.48839693,112230.0,112220.0,0.02307]
[1758572148233,0.48839693,112230.0,112220.0,1.13810718]
[1758572148434,0.48839693,112230.0,112220.0,1.43298436]
[1758572148633,0.48839693,112230.0,112220.0,0.31794718]
[1758572148834,0.78367411,112230.0,112220.0,1.13806718]
[1758572149046,0.78327411,112230.0,112220.0,1.13806718]
[1758572149349,0.48839693,112230.0,112220.0,1.22711678]
[1758572149645,0.49779693,112230.0,112220.0,1.23111678]
[1758572150030,0.48489693,112230.0,112220.0,1.53898396]
[1758572150234,0.48449693,112230.0,112220.0,1.53898396]
[1758572150432,0.48489693,112230.0,112220.0,1.53898396]
[1758572150646,0.48449693,112230.0,112220.0,1.53898396]
[1758572150840,0.48489693,112230.0,112220.0,1.53898396]
[1758572151140,0.5007867,112230.0,112220.0,1.53998396]
[1758572152646,0.5003867,112230.0,112220.0,1.53998396]
[1758572152943,0.5007867,112230.0,112220.0,1.53998396]
[1758572153139,0.49189693,112230.0,112220.0,1.53998396]
[1758572154643,0.49189693,112230.0,112220.0,0.71986396]
[1758572154940,0.49189693,112230.0,112220.0,1.53990396]
[1758572158647,0.49189693,112230.0,112220.0,0.71986396]
[1758572159149,0.49189693,112230.0,112220.0,1.53982396]
[1758572159845,0.51515397,112230.0,112220.0,1.53982396]
[1758572160943,0.51515397,112230.0,112220.0,0.71986396]
[1758572161143,0.51515397,112230.0,112220.0,1.53978396]
[1758572161343,0.52822397,112230.0,112220.0,0.1171196]
[1758572161546,0.91214275,112230.0,112220.0,0.1171196]
[1758572161742,1.16214275,112230.0,112220.0,0.02847]
[1758572161933,1.16214275,112230.0,112220.0,0.84839]
[1758572162137,1.16214275,112230.0,112220.0,0.84799]
[1758572162345,1.16214275,112230.0,112220.0,0.02847]
[1758572162544,1.16214275,112230.0,112220.0,0.84839]
[1758572162742,1.16214275,112230.0,112220.0,0.84799]
[1758572162942,1.16214275,112230.0,112220.0,0.84839]
[1758572163535,0.86726557,112230.0,112220.0,0.84839]
[1758572163745,1.16214275,112230.0,112220.0,0.9374396]
[1758572166248,1.16214275,112230.0,112220.0,0.84839]
[1758572168752,1.14146728,112230.0,112220.0,0.84839]
[1758572169050,1.14146728,112230.0,112220.0,0.02847]
[1758572169352,1.14146728,112230.0,112220.0,0.84835]
[1758572170747,1.14146728,112230.0,112220.0,0.02847]
[1758572171060,1.18634446,112230.0,112220.0,0.02786]
[1758572171249,1.46822869,112230.0,112220.0,0.0054]
[1758572171555,1.17335151,112230.0,112220.0,0.005]
[1758572171862,1.17335151,112230.0,112220.0,0.0054]
[1758572172049,1.17335151,112230.0,112220.0,0.005]
[1758572172250,1.17335151,112230.0,112220.0,0.0054]
[1758572172555,1.17335151,112230.0,112220.0,0.02786]
[1758572173056,1.17335151,112230.0,112220.0,0.0054]
[1758572173251,1.17335151,112230.0,112220.0,0.005]
[1758572173457,0.92608391,112230.0,112220.0,0.02786]
[1758572173859,1.22096109,112230.0,112220.0,0.02786]
[1758572174457,1.22096109,112230.0,112220.0,0.0054]
[1758572175461,1.22096109,112230.0,112220.0,0.02786]
[1758572175758,1.22096109,112230.0,112220.0,0.0054]
[1758572175948,1.22096109,112230.0,112220.0,0.02849]
[1758572176857,1.2419028,112230.0,112220.0,0.0054]
[1758572177064,1.19429322,112230.0,112220.0,0.02849]
[1758572177560,0.89941604,112230.0,112220.0,0.02849]
[1758572177760,1.19429322,112230.0,112220.0,0.0054]
[1758572178361,1.19429322,112230.0,112220.0,0.02849]
[1758572180563,0.86753181,112230.0,112220.0,0.02849]
[1758572180762,1.16240899,112230.0,112220.0,0.02849]
[1758572181662,0.86753181,112230.0,112220.0,0.02849]
[1758572181868,1.16240899,112230.0,112220.0,0.02849]
[1758572184461,1.19429322,112230.0,112220.0,0.02849]
[1758572187361,0.89941604,112230.0,112220.0,0.02849]
[1758572187568,1.19429322,112230.0,112220.0,0.02849]
[1758572187970,1.19429322,112230.0,112220.0,0.32336718]
[1758572189474,1.19429322,112230.0,112220.0,0.02849]
[1758572192580,1.29244376,112230.0,112220.0,0.02849]
[1758572196968,1.29244376,112230.0,112220.0,0.0054]
[1758572197373,1.29244376,112230.0,112220.0,0.02742]
[1758572198079,1.29244376,112230.0,112220.0,0.0054]
[1758572198679,1.29244376,112230.0,112220.0,0.02742]
[1758572199376,1.04244376,112230.0,112220.0,0.02742]
[1758572201575,1.04237735,112230.0,112220.0,0.02742]
[1758572203477,1.04237735,112230.0,112220.0,0.0054]
[1758572203694,1.33998693,112230.0,112220.0,0.005]
[1758572203983,1.3081027,112230.0,112220.0,0.0054]
[1758572204782,1.3081027,112230.0,112220.0,0.005]
[1758572205181,1.3081027,112230.0,112220.0,0.0054]
[1758572211289,1.3081027,112230.0,112220.0,0.005]
[1758572211481,1.3081027,112230.0,112220.0,0.0054]
[1758572212189,2.1277827,112230.0,112220.0,0.0054]
[1758572215196,1.3081027,112230.0,112220.0,0.0054]
[1758572215793,2.4885427,112230.0,112220.0,0.0054]
[1758572216489,2.4885427,112230.0,112220.0,0.005]
[1758572216696,2.4885427,112230.0,112220.0,0.0054]
[1758572217093,1.6689027,112230.0,112220.0,0.0054]
[1758572217292,2.4885427,112230.0,112220.0,0.0054]
[1758572219095,0.1242589,112220.0,112210.0,0.0001]
[1758572219291,0.1030368,112210.0,112200.0,0.01863909]
[1758572219495,1.72088515,112210.0,112200.0,0.01773909]
[1758572219698,1.72088515,112210.0,112200.0,0.01813909]
[1758572220490,0.93313535,112210.0,112200.0,0.01813909]
[1758572220689,0.54010763,112210.0,112200.0,0.03960909]
[1758572220890,0.93313535,112210.0,112200.0,0.04460909]
[1758572221100,0.93613535,112210.0,112200.0,0.04460909]
[1758572221291,0.54310763,112210.0,112200.0,0.04460909]
[1758572221487,0.93613535,112210.0,112200.0,0.04460909]
[1758572221892,0.93613535,112210.0,112200.0,0.02313909]
[1758572222385,0.94009389,112210.0,112200.0,0.02413909]
[1758572223094,0.96111039,112210.0,112200.0,0.006]
[1758572223298,0.96111039,112210.0,112160.0,0.03428]
[1758572223299,0.1242986,112170.0,112160.0,0.03428]
[1758572223497,0.50824777,112170.0,112160.0,0.1233765]
[1758572224300,0.50824777,112170.0,112160.0,0.1109665]
[1758572224502,0.51324777,112170.0,112160.0,0.1229665]
[1758572224892,0.42515917,112170.0,112160.0,0.1259665]
[1758572225095,0.49686426,112170.0,112160.0,0.1259665]
[1758572226205,0.58595296,112170.0,112160.0,0.03687]
[1758572226700,0.97898068,112170.0,112160.0,0.03687]
[1758572226897,0.97898068,112170.0,112160.0,0.0154]
[1758572227100,0.97898068,112170.0,112160.0,0.015]
[1758572227305,0.98772441,112170.0,112160.0,0.0154]
[1758572227602,1.26956284,112170.0,112160.0,0.015]
[1758572227906,1.28548205,112170.0,112160.0,0.0154]
[1758572228096,1.28548205,112170.0,112160.0,0.015]
[1758572228398,1.03448205,112170.0,112160.0,0.0124]
[1758572228607,1.86012205,112170.0,112160.0,0.0034]
[1758572229305,1.85612205,112170.0,112160.0,0.0024]
[1758572229495,1.86312205,112170.0,112160.0,0.0034]
[1758572230100,1.89484106,112170.0,112160.0,0.0034]
[1758572230502,1.84008342,112170.0,112160.0,0.0014]
[1758572230804,1.85112342,112170.0,112160.0,0.0034]
[1758572231497,2.10112342,112170.0,112160.0,0.0034]
[1758572231698,2.49415114,112170.0,112160.0,0.0034]
[1758572232099,1.28144342,112170.0,112160.0,0.0034]
[1758572232299,2.10116342,112170.0,112160.0,0.0034]
[1758572237905,1.28144342,112170.0,112160.0,0.0034]
[1758572238106,2.10124342,112170.0,112160.0,0.0034]
[1758572238607,1.28144342,112170.0,112160.0,0.0034]
[1758572238806,2.10124342,112170.0,112160.0,0.0034]
[1758572240505,2.11728205,112170.0,112160.0,0.0034]
[1758572242801,2.51030977,112170.0,112160.0,0.0034]
[1758572243002,0.1241466,112160.0,112150.0,0.0001]
[1758572243207,0.03505,112130.0,112120.0,0.1119784]
[1758572243403,0.41899917,112130.0,112120.0,0.1118784]
[1758572243602,0.81202689,112130.0,112120.0,0.1118784]
[1758572243903,0.81202689,112130.0,112120.0,0.1122784]
[1758572244798,0.81602689,112130.0,112120.0,0.1172784]
[1758572244997,0.81602689,112130.0,112120.0,0.02815]
[1758572244998,0.81702689,112130.0,112120.0,0.02815]
[1758572246004,0.81702689,112130.0,112120.0,0.1172784]
[1758572246304,0.81702689,112130.0,112120.0,0.1168784]
[1758572246506,0.81702689,112130.0,112120.0,0.1172784]
[1758572247000,0.42399917,112130.0,112120.0,0.1172784]
[1758572248000,0.49351989,112130.0,112120.0,0.1172784]
[1758572252506,0.58264029,112130.0,112120.0,0.1172784]
[1758572252709,0.58264029,112130.0,112120.0,0.41252937]
[1758572252710,0.87789126,112130.0,112120.0,0.41252937]
[1758572253212,0.82043676,112130.0,112120.0,0.41252937]
[1758572253616,0.82043676,112130.0,112120.0,0.1172784]
[1758572253913,0.82043676,112130.0,112120.0,0.41252937]
[1758572254717,0.82043676,112130.0,112120.0,0.32340097]
[1758572255408,0.82043676,112130.0,112120.0,0.02815]
[1758572255721,0.90955706,112130.0,112120.0,0.02815]
[1758572256512,0.9573147,112130.0,112120.0,0.02869]
[1758572256710,0.9573147,112130.0,112120.0,0.02829]
[1758572256906,0.9573147,112130.0,112120.0,0.02869]
[1758572257310,0.9256488,112130.0,112120.0,0.02869]
[1758572260612,0.95750362,112130.0,112120.0,0.02869]
[1758572262311,0.90974598,112130.0,112120.0,0.02869]
[1758572266919,0.52537471,112130.0,112120.0,0.02869]
[1758572267119,0.82062568,112130.0,112120.0,0.02869]
[1758572268320,0.90974598,112130.0,112120.0,0.02869]
[1758572269715,0.61449501,112130.0,112120.0,0.02869]
[1758572269916,0.90974598,112130.0,112120.0,0.02869]
[1758572271721,0.90974598,112130.0,112120.0,0.32394097]
[1758572271922,0.90974598,112130.0,112120.0,0.02869]
[1758572272122,0.82062568,112130.0,112120.0,0.32394097]
[1758572272424,0.90974598,112130.0,112120.0,0.02869]
[1758572272818,0.57313235,112130.0,112120.0,0.41306927]
[1758572273021,0.95750362,112130.0,112120.0,0.02869]
[1758572273225,0.90974598,112130.0,112120.0,0.32394097]
[1758572273619,0.82062568,112130.0,112120.0,0.32394097]
[1758572273819,0.16457471,112130.0,112120.0,0.97096024]
[1758572274020,0.15077471,112130.0,112120.0,0.97096024]
[1758572274423,0.12952471,112130.0,112120.0,1.33176024]
[1758572274724,0.09766989,112130.0,112120.0,1.33176024]
[1758572274921,0.09766989,112130.0,112120.0,1.68176024]
[1758572277817,0.02814917,112130.0,112120.0,1.97701121]
[1758572278224,0.0001,112140.0,112130.0,0.118864]
[1758572278418,0.73393601,112160.0,112150.0,0.1236881]
[1758572278630,0.43858504,112160.0,112150.0,1.23865907]
[1758572278820,0.73383601,112160.0,112150.0,1.23865907]
[1758572279231,0.70198119,112160.0,112150.0,1.23865907]
[1758572279427,0.02322022,112160.0,112150.0,1.23865907]
[1758572279731,0.02322022,112160.0,112150.0,1.59945907]
[1758572279925,0.02322022,112160.0,112150.0,1.60245907]
[1758572279926,0.02822022,112160.0,112150.0,1.60245907]
[1758572280325,0.05093022,112160.0,112150.0,0.78273907]
[1758572280633,0.02822022,112160.0,112150.0,1.60245907]
[1758572281033,0.02722022,112160.0,112150.0,1.60545907]
[1758572281431,0.02722022,112160.0,112150.0,1.60541907]
[1758572281632,0.04993022,112160.0,112150.0,0.78573907]
[1758572281830,0.04993022,112160.0,112150.0,1.60541907]
[1758572282429,0.34518119,112160.0,112150.0,0.78573907]
[1758572282636,0.35890119,112160.0,112150.0,1.24461907]
[1758572284135,0.35890119,112160.0,112150.0,0.42493907]
[1758572284335,0.35890119,112160.0,112150.0,1.24457907]
[1758572285138,0.35890119,112160.0,112150.0,0.42493907]
[1758572285337,0.35890119,112160.0,112150.0,0.1296881]
[1758572285539,0.35890119,112160.0,112150.0,1.23195907]
[1758572285842,0.33568097,112160.0,112150.0,1.23195907]
[1758572286032,0.34514001,112160.0,112150.0,1.24457907]
[1758572286741,0.34514001,112160.0,112150.0,0.42493907]
[1758572286942,0.32196097,112160.0,112150.0,1.24453907]
[1758572287439,0.32196097,112160.0,112150.0,1.21933907]
[1758572288241,0.33568097,112160.0,112150.0,0.0918681]
[1758572288437,0.33568097,112160.0,112150.0,1.20667907]
[1758572288643,0.42476757,112160.0,112150.0,1.14278097]
[1758572288943,0.42476757,112160.0,112150.0,1.23187557]
[1758572289447,0.33568097,112160.0,112150.0,1.23187557]
[1758572289646,0.3586699,112160.0,112150.0,1.23187557]
[1758572290048,0.4477559,112160.0,112150.0,1.23275557]
[1758572290748,0.3586699,112160.0,112150.0,1.24537557]
[1758572294251,1.35380717,112160.0,112150.0,0.02797]
[1758572294754,1.35380717,112160.0,112150.0,0.77533]
[1758572294954,1.35380717,112160.0,112150.0,0.77573]
[1758572295254,0.76330523,112160.0,112150.0,0.77573]
[1758572295551,1.34980717,112160.0,112150.0,0.76973]
[1758572295748,1.35380717,112160.0,112150.0,0.77473]
[1758572295951,1.35580717,112160.0,112150.0,0.77473]
[1758572296253,1.35580717,112160.0,112150.0,0.02737]
[1758572296455,1.35580717,112160.0,112150.0,0.83893]
[1758572301053,1.35580717,112160.0,112150.0,0.02737]
[1758572301249,1.35580717,112160.0,112150.0,0.84689]
[1758572305863,1.35580717,112160.0,112150.0,0.02737]
[1758572306061,1.35580717,112160.0,112150.0,0.84689]
[1758572310664,1.38760421,112160.0,112150.0,0.84689]
[1758572311265,0.79710227,112160.0,112150.0,0.84689]
[1758572311466,1.38760421,112160.0,112150.0,1.14214097]
[1758572311773,0.75326694,112160.0,112150.0,1.24204497]
[1758572312273,0.75326694,112160.0,112150.0,1.23123497]
[1758572312874,0.45801597,112160.0,112150.0,1.23123497]
[1758572313074,0.75326694,112160.0,112150.0,1.23123497]
[1758572314578,0.45801597,112160.0,112150.0,0.935984]
[1758572315880,0.45809161,112160.0,112150.0,1.34021175]
[1758572316084,0.54717761,112160.0,112150.0,0.946754]
[1758572318183,0.08357161,112160.0,112150.0,0.946754]
[1758572318484,0.05177457,112160.0,112150.0,1.59017175]
[1758572319184,0.02906457,112160.0,112150.0,1.95097175]
[1758572319383,0.02906457,112160.0,112150.0,1.70097175]
[1758572321485,0.02906457,112160.0,112150.0,0.88149175]
[1758572321983,0.02906457,112160.0,112150.0,1.70093175]
[1758572322579,0.05173457,112160.0,112150.0,0.88149175]
[1758572322783,0.05173457,112160.0,112150.0,1.70089175]
[1758572323183,0.02906457,112160.0,112150.0,1.70089175]
[1758572324781,0.02906457,112160.0,112150.0,0.88149175]
[1758572324982,0.02906457,112160.0,112150.0,1.70089175]
[1758572326188,0.02906457,112160.0,112150.0,2.27089175]
[1758572326391,0.02906457,112160.0,112150.0,1.45149175]
[1758572326695,0.02906457,112160.0,112150.0,2.27085175]
[1758572327685,0.02906457,112160.0,112150.0,1.45149175]
[1758572327891,0.02906457,112160.0,112150.0,2.27085175]
[1758572333191,0.006,112160.0,112150.0,2.6642695]
[1758572333390,0.0026,112160.0,112150.0,2.67313561]
[1758572333593,0.0026,112160.0,112150.0,2.27971786]
[1758572336893,0.0026,112160.0,112150.0,1.46035786]
[1758572337090,0.0026,112160.0,112150.0,1.88622011]
[1758572337291,0.0026,112160.0,112150.0,2.27963786]
[1758572337496,0.0026,112160.0,112150.0,1.46035786]
[1758572337999,0.0026,112160.0,112150.0,2.27963786]
[1758572341202,0.0026,112160.0,112150.0,1.46035786]
[1758572341503,0.0026,112160.0,112150.0,2.27959786]
[1758572342693,0.0026,112160.0,112150.0,2.42301561]
[1758572343206,0.0026,112160.0,112150.0,2.02959786]
[1758572345307,0.07897144,112180.0,112170.0,0.1245773]
[1758572345497,0.0231327,112180.0,112170.0,2.00799505]
[1758572346099,0.02207,112190.0,112180.0,0.0890621]
[1758572346402,0.02207,112190.0,112180.0,0.51795985]
[1758572346703,0.02207,112190.0,112180.0,1.33739985]
[1758572346899,0.03623214,112190.0,112180.0,1.33739985]
[1758572347098,0.02313214,112190.0,112180.0,1.33739985]
[1758572347300,0.87949809,112200.0,112180.0,1.33739985]
[1758572347505,0.02207,112190.0,112180.0,1.33749985]
[1758572347698,0.04520214,112190.0,112180.0,1.69819985]
[1758572348297,0.04720214,112190.0,112180.0,1.69819985]
[1758572348609,0.04720214,112190.0,112180.0,1.70119985]
[1758572349101,0.11750505,112190.0,112180.0,1.69819985]
[1758572349406,0.04920214,112190.0,112180.0,1.70119985]
[1758572349803,0.05612843,112190.0,112180.0,1.70219985]
[1758572350406,0.03405843,112190.0,112180.0,1.70219985]
[1758572352009,0.05612843,112190.0,112180.0,1.70243985]
[1758572352405,0.05612843,112190.0,112180.0,1.70227985]
[1758572352709,0.05612843,112190.0,112180.0,1.3089821]
[1758572352710,0.15824983,112190.0,112180.0,1.3089821]
[1758572353103,0.14518983,112190.0,112180.0,1.70239985]
[1758572353305,0.14518983,112190.0,112180.0,0.88275985]
[1758572353600,0.14518983,112190.0,112180.0,0.4893421]
[1758572353805,0.14518983,112190.0,112180.0,1.3095421]
[1758572354011,0.21820026,112190.0,112180.0,1.70295985]
[1758572354207,0.21820026,112190.0,112180.0,0.88275985]
[1758572354407,0.21820026,112190.0,112180.0,1.70295985]
[1758572355409,0.12913886,112190.0,112180.0,1.70295985]
[1758572355614,0.10706886,112190.0,112180.0,1.70295985]
[1758572356814,0.10706886,112190.0,112180.0,1.72089684]
[1758572357206,0.10706886,112190.0,112180.0,2.03089684]
[1758572357207,0.02513214,112190.0,112180.0,2.03089684]
[1758572357507,0.02509423,112190.0,112180.0,2.03089684]
[1758572357701,0.002,112190.0,112180.0,2.03089684]
[1758572358914,0.002,112190.0,112180.0,1.63747909]
[1758572359110,0.002,112190.0,112180.0,2.03089684]
[1758572359716,0.002,112190.0,112180.0,1.63747909]
[1758572359912,0.002,112190.0,112180.0,2.03089684]
[1758572360814,0.02509388,112190.0,112180.0,2.03089684]
[1758572363614,0.02509388,112190.0,112180.0,2.03988685]
[1758572364815,0.02509388,112190.0,112180.0,2.03089684]
[1758572367917,0.02509388,112190.0,112180.0,1.21069684]
[1758572368318,0.02509388,112190.0,112180.0,2.03025684]
[1758572370121,0.02509388,112190.0,112180.0,1.21069684]
[1758572370318,0.02509388,112190.0,112180.0,2.03021684]
[1758572370623,0.02509388,112190.0,112180.0,1.21069684]
[1758572370927,0.02509388,112190.0,112180.0,2.03021684]
[1758572371512,0.11415548,112190.0,112180.0,1.21069684]
[1758572371712,0.79264323,112190.0,112180.0,1.31473909]
[1758572371916,0.39922548,112190.0,112180.0,1.70815684]
[1758572372114,0.27509388,112190.0,112180.0,1.72142684]
[1758572372422,0.27509388,112190.0,112180.0,2.04182684]
[1758572374022,0.36415558,112190.0,112180.0,2.04202684]
[1758572374228,0.36415558,112190.0,112180.0,2.04198684]
[1758572376634,0.36415558,112190.0,112180.0,2.23832151]
[1758572378131,0.27509388,112190.0,112180.0,2.23832151]
[1758572378541,0.36415548,112190.0,112180.0,2.23832151]
[1758572378933,0.36415548,112190.0,112180.0,1.64856909]
[1758572379140,0.36415548,112190.0,112180.0,2.23832151]
[1758572379341,0.11415548,112190.0,112180.0,2.23832151]
[1758572385338,0.02509388,112190.0,112180.0,2.23832151]
[1758572385846,0.11415558,112190.0,112180.0,2.23832151]
[1758572389043,0.02509388,112190.0,112180.0,2.23832151]
[1758572393751,0.02509388,112190.0,112180.0,3.23832151]
[1758572396350,0.02509388,112190.0,112180.0,3.23752151]
[1758572399244,0.02509388,112190.0,112180.0,3.48752151]
[1758572400550,0.02509388,112190.0,112180.0,2.66848151]
[1758572400950,0.02509388,112190.0,112180.0,3.48752151]
[1758572403860,0.02510432,112190.0,112180.0,3.48752151]
[1758572404960,0.02510432,112190.0,112180.0,2.66848151]
[1758572405165,0.02510432,112190.0,112180.0,3.48748151]
[1758572405549,0.02510432,112190.0,112180.0,2.66848151]
[1758572405761,0.02510432,112190.0,112180.0,3.48748151]
[1758572406061,0.02510432,112190.0,112180.0,2.66848151]
[1758572406355,0.02510432,112190.0,112180.0,3.48748151]
[1758572409961,0.02510432,112190.0,112180.0,2.66848151]
[1758572410352,0.02510432,112190.0,112180.0,3.48748151]
[1758572412261,0.11416642,112190.0,112180.0,1.50872909]
[1758572412451,0.12724642,112190.0,112180.0,1.8236053]
[1758572412762,0.12724642,112190.0,112180.0,2.34732909]